Cogmind - Beta 11.1 @@@ ROGUE MODE // 2022.06.03 @ 08:18:35 Player: Demise Result: Destroyed by as-90014 with Assembled Heavy Rifle Performance ------------- Evolutions (0) 0 Regions Visited (3) 600 Robots Destroyed (48) 240 Value Destroyed (1028) 1028 Prototype IDs (3) 60 Alien Tech Used (0) 0 Bonus (16) 16 TOTAL SCORE: 1944 Bonus ------- High Alert Combat Kills 16 Cogmind --------- Core Integrity 0/250 Matter 228/300 Energy 160/160 System Corruption 1% Temperature Cool (0) Movement Rolling (140) Ox4 Location -10/Exiles Parts ------- > --- POWER (1) -------- Light Nuclear Core > --- PROPULSION (2) --- Wheel Wheel > --- UTILITY (2) ------ Huge Storage Unit Light Armor Plating > --- WEAPON (2) ------- Heavy Assault Rifle Mini Grenade Launcher > --- INVENTORY (25) --- Light Ion Engine Wheel Wheel Wheel Wheel Wheel Wheel Wheel Compact Wheel Compact Wheel Improved Heat Sink Weight Redist. System Sensor Array Signal Interpreter Seismic Detector Targeting Computer Core Shielding EM Pulse Gun Assault Rifle Assault Rifle Light Assault Rifle Heavy Assault Rifle Heavy Assault Rifle Heavy Assault Rifle Mini Grenade Launcher Peak State ------------ > --- POWER ------------ Light Nuclear Core > --- PROPULSION ------- Wheel Wheel > --- UTILITY ---------- Huge Storage Unit Light Armor Plating > --- WEAPON ----------- Heavy Assault Rifle Heavy Assault Rifle > --- INVENTORY -------- Light Ion Engine Wheel Wheel Wheel Wheel Wheel Wheel Compact Wheel Compact Wheel Improved Heat Sink Weight Redist. System Sensor Array Signal Interpreter Seismic Detector Tractor Beam EM Pulse Gun Assault Rifle Assault Rifle Light Assault Rifle Heavy Assault Rifle Heavy Assault Rifle Mini Grenade Launcher Mini Grenade Launcher [Rating: 14] Favorites ----------- Power Light Nuclear Core Engine Ion Engine Power Core Light Nuclear Core Propulsion Wheel Wheel Wheel Utility Huge Storage Unit Device Seismic Detector Storage Huge Storage Unit Protection Light Armor Plating Weapon Assault Rifle Energy Gun Small Laser Ballistic Gun Assault Rifle Launcher Mini Grenade Launcher Build | -11 -10 -10 -10 ------- Run | Scr Mat Min Exi Slots Evolved . | . . . . Power . | . . . . Propulsion . | . . . . Utility . | . . . . Weapon . | . . . . Parts Attached 61 | 7 48 4 2 Power 10 | 1 8 1 . Engine 8 | 1 7 . . Core 2 | . 1 1 . Reactor . | . . . . Propulsion 22 | 2 20 . . Treads . | . . . . Leg . | . . . . Wheel 22 | 2 20 . . Hover . | . . . . Flight . | . . . . Utility 11 | 2 5 3 1 Device 5 | 1 2 2 . Storage 3 | 1 2 . . Processor . | . . . . Hackware . | . . . . Protection 3 | . 1 1 1 Artifact . | . . . . Weapon 18 | 2 15 . 1 Energy Gun 1 | 1 . . . Energy Cannon . | . . . . Ballistic Gun 16 | 1 15 . . Ballistic Cannon . | . . . . Launcher 1 | . . . 1 Special Weapon . | . . . . Impact Weapon . | . . . . Slashing Weapon . | . . . . Piercing Weapon . | . . . . Special Melee Weapon . | . . . . Unidentified Prototypes . | . . . . Parts Lost 9 | . 9 . . Power 2 | . 2 . . Propulsion 5 | . 5 . . Utility . | . . . . Weapon 2 | . 2 . . Highest Loss Streak 7 | . 7 . . To Critical Strikes . | . . . . Average Slot Usage (%) 97 | . 96 100 100 Engine 5 | . 7 . . Core 8 | . 6 14 14 Wheel 27 | . 27 28 28 Device 6 | . 3 12 12 Storage 15 | . 16 14 14 Protection 4 | . 5 1 1 Ballistic Gun 27 | . 27 28 26 Naked Turns . | . . . . Heaviest Build 109 | 11 109 94 92 Greatest Support 26 | 20 26 20 20 Greatest Overweight (x) 10 | . 10 4 4 Average Overweight (x) 3 | . 3 4 4 Largest Inventory Capacity 25 | 8 25 25 25 Average Capacity 23 | 7 23 25 25 Most Carried 25 | 5 25 25 25 Average Carried 18 | 1 16 24 25 Final Capacity 25 | 8 25 25 25 Final Carried 25 | 5 25 25 25 Class Distribution -------------------- 68% | Mutant 31% | Scavenger-Mutant Dominant Class ---------------- Mutant | -10/Materials Scavenger-Mutant | -10/Mines Scavenger-Mutant | -10/Exiles Resources | -11 -10 -10 -10 ----------- Run | Scr Mat Min Exi Matter Collected 1435 | 289 1041 105 . Remotely . | . . . . Salvage Created 1624 | 177 1255 149 43 Parts 106 | 13 84 5 4 Haulers Intercepted 2 | . 2 . . Recyclers Shooed . | . . . . Parts Field Recycled . | . . . . Retrieved Matter . | . . . . Parts Self-Destructed . | . . . . Prevented . | . . . . Kills | -11 -10 -10 -10 ------- Run | Scr Mat Min Exi Combat Hostiles Destroyed 30 | . 23 3 4 Guns 26 | . 23 3 . AOE 4 | . . . 4 Classes Destroyed 11 | 3 6 1 1 Worker 9 | 1 8 . . Builder 1 | . 1 . . Tunneler 4 | 3 1 . . Hauler 2 | . 2 . . Recycler 1 | 1 . . . Operator 2 | . 2 . . Watcher 3 | . 3 . . Swarmer 2 | . 2 . . Grunt 23 | . 21 2 . Sentry 1 | . . 1 . Assembled 4 | . . . 4 Best Kill Streak 8 | 3 8 2 4 Combat Bots Only 6 | . 6 2 4 Max Kills in Single Turn 4 | 1 2 1 4 Gunslinging . | . . . . Exploded 4 | . . . 4 Melee . | . . . . Uniques/NPCs Destroyed . | . . . . Combat | -11 -10 -10 -10 -------- Run | Scr Mat Min Exi Damage Taken 1097 | . 877 73 147 Core 255 | . 156 25 74 Absorbed by Shields . | . . . . Core Remaining (%) 100 | 100 . . . Volleys Fired 140 | 19 107 10 4 Largest 2 | 2 2 2 1 Hottest 60 | 60 60 46 30 Shots Fired 274 | 37 212 20 5 Gun 271 | 37 212 20 2 Cannon . | . . . . Launcher 3 | . . . 3 Special . | . . . . Kinetic 243 | 19 202 20 2 Thermal 28 | 18 10 . . Explosive 3 | . . . 3 Electromagnetic . | . . . . Robot Hit Streak 14 | 5 14 5 4 Robot Miss Streak 6 | 3 6 2 . Penetration Max . | . . . . Secondary Targets 1 | . . 1 . Max Gunslinging Chain 1 | . . 1 . Shots Hit Robots 162 | 20 128 13 1 Core Hits 88 | 8 68 5 7 Critical Kills . | . . . . Critical Parts Destroyed 1 | . 1 . . Critical Strikes 1 | . 1 . . Destroy 1 | . 1 . . Melee Attacks . | . . . . Impact . | . . . . Slashing . | . . . . Piercing . | . . . . Sneak Attacks . | . . . . Combat Hostiles . | . . . . Follow-up Attacks . | . . . . Damage Inflicted 2503 | 203 1667 202 431 Guns 2072 | 203 1667 202 . Cannons . | . . . . Explosions 431 | . . . 431 Melee . | . . . . Ramming . | . . . . Kinetic 1940 | 104 1634 202 . Thermal 132 | 99 33 . . Explosive 431 | . . . 431 Electromagnetic . | . . . . Impact . | . . . . Slashing . | . . . . Piercing . | . . . . Highest Corruption 1 | . 1 1 1 Average Corruption 1 | . 1 1 1 Corruption Purged . | . . . . Corruption Blocked . | . . . . Effects 20 | . 13 4 3 Message Errors 4 | . 3 1 . Matter Fused 6 | . 4 . 2 Heat Flow Errors 1 | . 1 . . Energy Discharges 1 | . . 1 . Data Loss (minor) 3 | . 1 2 . Misfires 3 | . 2 . 1 Weapon Failures 2 | . 2 . . Overload Shots . | . . . . Overflow Damage 24 | . . . 24 Projectiles . | . . . . Explosions 24 | . . . 24 Melee . | . . . . Knockbacks . | . . . . Impact . | . . . . Kinetic . | . . . . Secondary . | . . . . Self-Inflicted Damage 42 | . . . 42 Shots 1 | . . . 1 Rammed . | . . . . Targets Rammed . | . . . . Kicked . | . . . . Crushed . | . . . . Highest Temperature 208 | 60 208 42 . Average Temperature 27 | 26 28 25 . Received Heat Transfer 522 | . 480 42 . Siege Activations . | . . . . Robots Corrupted . | . . . . Combat Hostiles . | . . . . Parts Fried . | . . . . Impact Corruptions . | . . . . Robots Melted . | . . . . Combat Hostiles . | . . . . Parts Melted . | . . . . Heat Transferred 300 | 225 75 . . Parts Sabotaged . | . . . . Parts Stolen . | . . . . Parts Stripped . | . . . . Power Chain Reactions . | . . . . Missiles Intercepted . | . . . . Alert | -11 -10 -10 -10 ------- Run | Scr Mat Min Exi Peak Influence 450 | 25 450 81 . Initial 31 | . 16 31 . Average 129 | 9 174 39 . Maximum Alert Level 2 | . 2 . . Low Security (%) 75 | 100 63 100 . Level 1 16 | . 24 . . Level 2 8 | . 12 . . Level 3 . | . . . . Level 4 . | . . . . Level 5 . | . . . . High Security . | . . . . Max Security . | . . . . Squads Dispatched 8 | . 8 . . Investigation 6 | . 6 . . Extermination . | . . . . Reinforcement 2 | . 2 . . Assault . | . . . . Garrison . | . . . . Intercept . | . . . . Searches Triggered . | . . . . Construction Impeded . | . . . . Haulers Reinforced . | . . . . Active Scanning Responses . | . . . . Cargo Convoy Interrupts . | . . . . Stealth | -11 -10 -10 -10 --------- Run | Scr Mat Min Exi Distress Signals . | . . . . Communications Jammed . | . . . . Distress Signals . | . . . . Times Spotted 48 | . 38 3 7 Peak Tracking Total 10 | . 7 2 10 Tactical Retreats 6 | . 6 . . Traps | -11 -10 -10 -10 ------- Run | Scr Mat Min Exi Traps Triggered 10 | . 10 . . Indirectly . | . . . . Trap Hack Attempts . | . . . . Triggered . | . . . . Disarmed . | . . . . Reprogrammed . | . . . . Reused . | . . . . Traps Extracted . | . . . . Installed . | . . . . Triggered . | . . . . Machines | -11 -10 -10 -10 ---------- Run | Scr Mat Min Exi Machines Disabled 7 | . 1 . 6 Max in Single Turn 4 | . 1 . 4 Machines Sabotaged . | . . . . Garrisons Compromised . | . . . . Overloaded Fab Kills . | . . . . Hacking | -11 -10 -10 -10 --------- Run | Scr Mat Min Exi Machines Accessed 6 | . 6 . . Terminals 6 | . 6 . . Fabricators . | . . . . Repair Stations . | . . . . Recycling Units . | . . . . Scanalyzers . | . . . . Garrison Access . | . . . . Total Hacks 29 | . 29 . . Successful 17 | . 17 . . Failed 12 | . 12 . . Catastrophic . | . . . . Database Lockouts . | . . . . Manual 22 | . 22 . . Terminals 29 | . 29 . . Fabricators . | . . . . Repair Stations . | . . . . Recycling Units . | . . . . Scanalyzers . | . . . . Garrison Access . | . . . . Terminal Hacks 13 | . 13 . . Part Schematic 2 | . 2 . . Robot Analysis 3 | . 3 . . Prototype ID Bank 2 | . 2 . . Level Access Points 1 | . 1 . . Branch Access Points 1 | . 1 . . Terminal Index 1 | . 1 . . Unreport Threat 2 | . 2 . . Hauler Manifests 1 | . 1 . . Fabricator Hacks . | . . . . Repair Station Hacks . | . . . . Recycling Unit Hacks . | . . . . Scanalyzer . | . . . . Garrison Access Hacks . | . . . . Unauthorized Hacks 4 | . 4 . . Terminals 4 | . 4 . . Botnet 3 | . 3 . . Operators 1 | . 1 . . Fabricators . | . . . . Repair Stations . | . . . . Recycling Units . | . . . . Scanalyzers . | . . . . Garrison Access . | . . . . Data Cores Recovered . | . . . . Used . | . . . . Hacking Detections 6 | . 6 . . Full Trace Events 4 | . 4 . . Feedback Events 1 | . 1 . . Corruption 1 | . 1 . . Feedback Blocked . | . . . . Robot Schematics Acquired . | . . . . Robots Built . | . . . . Authchips . | . . . . Time . | . . . . Total Robot Build Rating . | . . . . Part Schematics Acquired 2 | . 2 . . Parts Built . | . . . . Authchips . | . . . . Time . | . . . . Total Part Build Rating . | . . . . Parts Repaired . | . . . . Time . | . . . . Parts Recycled . | . . . . Recycled Matter . | . . . . Retrieved Matter . | . . . . Retrieved Components . | . . . . Parts Scanalyzed . | . . . . Part Schematics Acquired . | . . . . Parts Damaged . | . . . . Bothacking | -11 -10 -10 -10 ------------ Run | Scr Mat Min Exi Used RIF Installer . | . . . . Robots Hacked . | . . . . Non-combat . | . . . . Combat . | . . . . Robot Hacks Applied . | . . . . Relay Couplers Released . | . . . . Fabnet Peak Effective % . | . . . . Robots Rewired . | . . . . Allies Hacked . | . . . . Hacks Repelled . | . . . . Allies | -11 -10 -10 -10 -------- Run | Scr Mat Min Exi Total Allies . | . . . . Largest Group . | . . . . Highest-Rated Group . | . . . . Highest-Rated Ally . | . . . . Total Orders . | . . . . Ally Attacks . | . . . . Total Damage . | . . . . Kills . | . . . . Allies Corrupted . | . . . . Allies Melted . | . . . . Intel | -11 -10 -10 -10 ------- Run | Scr Mat Min Exi Robot Analysis Total 3 | . 3 . . Derelict Logs Recovered 3 | . . 3 . Drone Launches . | . . . . Drone Recoveries . | . . . . Exploration | -11 -10 -10 -10 ------------- Run | Scr Mat Min Exi Turns Passed 2813 | 109 1821 769 114 Spaces Moved 1628 | 53 982 519 74 Core 3 | 3 . . . Treads . | . . . . Legs . | . . . . Wheels 1625 | 50 982 519 74 Hover . | . . . . Flight . | . . . . Fastest Speed 50 | 50 80 140 140 Average Speed 136 | 78 137 140 140 Slowest Speed 230 | 80 230 140 140 Overloaded Moves . | . . . . Propulsion Burnouts . | . . . . Robots Hopped . | . . . . Cave-ins Triggered . | . . . . Exploration Rate (%) 56 | 4 98 99 26 Regions Visited 3 Branch Regions 2 Pre-discovered Areas 2 | . . 2 . Known Exits Taken 1 | . 1 . . Unknown Exits Taken 2 | 1 . 1 . Scrap Searched 1 | . . 1 . Spaces Dug . | . . . . Terrain Destroyed 22 | . . . 22 Melee . | . . . . Projectile . | . . . . AOE 22 | . . . 22 Terrain Rammed . | . . . . Walls Destroyed . | . . . . Machines Disabled . | . . . . Actions | -11 -10 -10 -10 --------- Run | Scr Mat Min Exi Total 1944 | 84 1235 545 80 Wait 61 | . 59 2 . Move 1625 | 52 981 518 74 Hop . | . . . . Pick Up 34 | 6 23 5 . Fast Attach 25 | 6 19 . . Attach 12 | 1 11 . . Detach 5 | . 5 . . Swap 24 | . 18 4 2 Drop 18 | . 12 6 . Fire 140 | 19 107 10 4 Melee . | . . . . Ram . | . . . . Kick . | . . . . Crush . | . . . . Escape Stasis . | . . . . Rewire . | . . . . Trap . | . . . . Miscellaneous . | . . . . Route ------- -11/Scrapyard -10/Materials (discovered 4 exits: *Mat x3 / *Min) -10/Mines (discovered 3 exits: *Mat x2 / [*Exi]) -10/Exiles History --------- Turn | Location | Event 2 | -11/Scrapyard | Met Revision 17 18 | -11/Scrapyard | Discovered new exit (range 16) 110 | -11/Scrapyard | Entered Materials 246 | -10/Materials | Discovered new exit (range 16) 328 | -10/Materials | Build established: Mutant 422 | -10/Materials | Discovered new exit (range 8) 949 | -10/Materials | Core integrity fell below 50% 989 | -10/Materials | Lost 7 parts (2p4n1w) 1072 | -10/Materials | Discovered new exit (range 4) 1266 | -10/Materials | Identified exit to Materials 1266 | -10/Materials | Identified exit to Mines 1931 | -10/Materials | Entered Mines 2214 | -10/Mines | Learned location of Zion (-7) 2226 | -10/Mines | Learned location of Storage (-9) 2337 | -10/Mines | Received a Rocket Launcher from a helpful Derelict 2367 | -10/Mines | Build established: Scavenger-Mutant 2570 | -10/Mines | Discovered exit to Materials (range 11) 2583 | -10/Mines | Joined a pair of Derelicts in attacking an 0b10 outpost 2695 | -10/Mines | Deemed a non-threat by the Exiles lab entrance 2695 | -10/Mines | Discovered new exit (range 5) 2700 | -10/Mines | Entered Exiles 2735 | -10/Exiles | Met 8R-AWN 2758 | -10/Exiles | Met EX-HEX 2801 | -10/Exiles | Attacked by the Exiles 2810 | -10/Exiles | Core integrity fell below 20% 2814 | -10/Exiles | Destroyed by as-90014 with Assembled Heavy Rifle Last Messages --------------- I'd love to just go ask the Imprinter what all this is about, she must know something, but I doubt that would end well. The Zionites will tell you those Marauders at the gates are defenses set up by Warlord... Nope, the Imprinter put them there mostly to keep us out! Anyway, I've got to get back to poking and prodding these nasty little guys. Go see BIN. I can't imagine you'll want to stay in our boring little cave for long, and we could use some help with the project in the back. 02801_ System corrupted: FCS attempts to trigger Hvy. Assault Rifle. 02801_ System corrupted: Hvy. Assault Rifle misfires. 02801_ EXILES: Hostile robot within lab perimeter. Defensive protocols time, folks! 02809_ Machine disabled. 02811_ Destroyed Asb. Hover Unit. 02813_ as-00280 destroyed. 02813_ Destroyed Asb. Hover Unit. 02813_ as-97577 destroyed. 02813_ Components damaged. 02813_ as-95207 destroyed. 02813_ as-59285 destroyed. 02814_ The unstable cave ceiling collapses. Map ----- +----------------------------------------------------+ | ?????????????????????????????????????????????????? | | ?????????????????????????????????????????????????? | | ????????????????????????????????? "? "??????? | | ???????????????????????????????? " """???? | | ?????????????????????????????? " "???? | | ????????????????????????????? " "##?? | | ????????????????????????????? ""### | | ?????????????????????????????? """# | | ?????????????????????????????? "# | | ?????????????????????????????""" # | | ?????????????????????????????#""" | | ?????????????????????????????#"""" | | ????????????? ?????##???????##"" | | ???????????? #??## ########"""" | | ???????????? ##aa% "" | | ???????????? ! = | | ??????????? c | | ??????????? | | ??????????? " | | ??????????? a "" """ "" | | ????????????? "" a #""" " " ""#" "# | | ?????????????? ""### a ####""" """##"""""""## | | ????????????????????# #??###""""###########? | | ?????????????????????# ##???######??????????? | | ??????????????????????#! !#???????????????????? | | ??????????????????????# @ !#???????????????????? | | ?????????????????????# #???????????????????? | | ?????????????????????##!!" ! #???????????????????? | | ?????????????????????#########???????????????????? | | ?????????????????????????????????????????????????? | | ?????????????????????????????????????????????????? | | ?????????????????????????????????????????????????? | | ?????????????????????????????????????????????????? | | ?????????????????????????????????????????????????? | | ?????????????????????????????????????????????????? | | ?????????????????????????????????????????????????? | | ?????????????????????????????????????????????????? | | ?????????????????????????????????????????????????? | | ?????????????????????????????????????????????????? | | ?????????????????????????????????????????????????? | | ?????????????????????????????????????????????????? | | ?????????????????????????????????????????????????? | | ?????????????????????????????????????????????????? | | ?????????????????????????????????????????????????? | | ?????????????????????????????????????????????????? | | ?????????????????????????????????????????????????? | | ?????????????????????????????????????????????????? | | ?????????????????????????????????????????????????? | | ?????????????????????????????????????????????????? | | ?????????????????????????????????????????????????? | +----------------------------------------------------+ Best States ------------- Heat Dissipation 35 Energy Generation 14 Energy Capacity 250 Matter Stores 300 Matter Capacity 300 Sight Range 16 Robot Scan Range 14 Terrain Scan Density 10 Armor Coverage 150 Evasion (%) 44 Item Schematics ----------------- Huge Storage Unit | -10/Materials | Hacked Med. Storage Unit | -10/Materials | Hacked Robot Schematics ------------------ None Fabricated ------------ Nothing Alien Tech Used ----------------- None Achievements -------------- None Challenges ------------ None Game ------ Seed BeamPointNeutralizer Manual? 0 Play Time 00:18:56 Cumulative 550.5 hours Start 2022.06.02 @ 18:42:29 End 2022.06.03 @ 08:18:35 Sessions 3 Manual Loads 0 Difficulty Rogue Special Mode None Game No. 448 Rogue 448 Adventurer 0 Explorer 0 Win Type - Total 5 Types 4/0/0/1/0/0/0/0/0 Lore% 71 Gallery% 83 Achievement% 66 Wizard Run 0 Options --------- ASCII 0 Keyboard 1 Movement Numpad Keybinds 0 Fullscreen 1 Font 12/Terminus Map View 83x54 Tactical HUD 1 Map Filters NONE Filters NONE Steam 1 RUN: 86c765cb-cb6d-44e0-94ce-318be0f8696b